[Event "*** Titled Tuesday Blitz"]
[Site "Chess.com"]
[Date "2020.11.24"]
[Round "6"]
[White "Ural_bogatyr"]
[Black "esteban062000"]
[Result "1/2-1/2"]
[WhiteElo "2405"]
[BlackElo "2245"]
[TimeControl "180+1"]
[EndTime "11:23:15 PST"]
[Termination "Game drawn by repetition"]

1. e4 {[%clk 0:03:00.9]} 1... c5 {[%clk 0:02:59.1]} 2. Nf3 {[%clk 0:03:00.8]}
2... g6 {[%clk 0:02:57.3]} 3. c3 {[%clk 0:03:00.3]} 3... Bg7 {[%clk 0:02:51.4]}
4. d4 {[%clk 0:02:59.9]} 4... cxd4 {[%clk 0:02:51.8]} 5. cxd4 {[%clk 0:03:00.8]}
5... d5 {[%clk 0:02:51.6]} 6. e5 {[%clk 0:03:01.3]} 6... Nc6 {[%clk 0:02:50.8]}
7. Nc3 {[%clk 0:03:01.6]} 7... Bg4 {[%clk 0:02:50.2]} 8. Be2 {[%clk 0:03:01.9]}
8... e6 {[%clk 0:02:49.9]} 9. Bf4 {[%clk 0:03:01.8]} 9... Nge7 {[%clk
0:02:49.3]} 10. O-O {[%clk 0:03:00.7]} 10... O-O {[%clk 0:02:48.7]} 11. h3
{[%clk 0:02:44.2]} 11... Bf5 {[%clk 0:02:47.7]} 12. Ne1 {[%clk 0:02:34.1]} 12...
f6 {[%clk 0:02:37.2]} 13. g4 {[%clk 0:02:08]} 13... Be4 {[%clk 0:02:35.1]} 14.
f3 {[%clk 0:02:05.9]} 14... fxe5 {[%clk 0:02:33.2]} 15. Bxe5 {[%clk 0:02:06]}
15... Nxe5 {[%clk 0:02:19]} 16. dxe5 {[%clk 0:02:06]} 16... Bxe5 {[%clk
0:01:56.5]} 17. fxe4 {[%clk 0:02:05.2]} 17... Qb6+ {[%clk 0:01:54.9]} 18. Kg2
{[%clk 0:02:01.7]} 18... Rxf1 {[%clk 0:01:21.7]} 19. Bxf1 {[%clk 0:02:00.2]}
19... Qxb2+ {[%clk 0:01:20.5]} 20. Nc2 {[%clk 0:01:52.3]} 20... Qxc3 {[%clk
0:01:16.3]} 21. Qd3 {[%clk 0:01:36.9]} 21... Qxd3 {[%clk 0:01:12.1]} 22. Bxd3
{[%clk 0:01:37.8]} 22... Bxa1 {[%clk 0:01:11.7]} 23. Nxa1 {[%clk 0:01:38.7]}
23... Rc8 {[%clk 0:01:11.3]} 24. Nb3 {[%clk 0:01:36.1]} 24... Rc3 {[%clk
0:01:09.3]} 25. Bb1 {[%clk 0:01:36]} 25... Nc6 {[%clk 0:01:04.8]} 26. exd5
{[%clk 0:01:34.8]} 26... exd5 {[%clk 0:01:04.6]} 27. h4 {[%clk 0:01:28.7]} 27...
Ne5 {[%clk 0:01:00.4]} 28. h5 {[%clk 0:01:27.5]} 28... Nxg4 {[%clk 0:00:58.5]}
29. hxg6 {[%clk 0:01:27.8]} 29... hxg6 {[%clk 0:00:59.1]} 30. Bxg6 {[%clk
0:01:28.3]} 30... Ne3+ {[%clk 0:00:57.9]} 31. Kf2 {[%clk 0:01:27.4]} 31... Ng4+
{[%clk 0:00:56.1]} 32. Ke2 {[%clk 0:01:26.6]} 32... Ne5 {[%clk 0:00:56.4]} 33.
Bf5 {[%clk 0:01:22.6]} 33... Kg7 {[%clk 0:00:52.9]} 34. Nd2 {[%clk 0:01:19.6]}
34... Kf6 {[%clk 0:00:51.2]} 35. Bb1 {[%clk 0:01:17.3]} 35... Rh3 {[%clk
0:00:48.5]} 36. Nb3 {[%clk 0:01:12.8]} 36... Rh2+ {[%clk 0:00:47.7]} 37. Ke3
{[%clk 0:01:13]} 37... Nc4+ {[%clk 0:00:47.7]} 38. Kd4 {[%clk 0:01:12.9]} 38...
Na3 {[%clk 0:00:47.5]} 39. Bd3 {[%clk 0:01:10.3]} 39... Rxa2 {[%clk 0:00:47.2]}
40. Kxd5 {[%clk 0:01:10.5]} 40... Rb2 {[%clk 0:00:47.3]} 41. Nc5 {[%clk
0:01:09.4]} 41... Ke7 {[%clk 0:00:42.3]} 42. Ne4 {[%clk 0:00:57.7]} 42... Rh2
{[%clk 0:00:37.4]} 43. Nc5 {[%clk 0:00:49]} 43... Rh5+ {[%clk 0:00:36.9]} 44.
Kd4 {[%clk 0:00:49]} 44... b6 {[%clk 0:00:35.7]} 45. Ne4 {[%clk 0:00:48.3]}
45... Nb5+ {[%clk 0:00:34.4]} 46. Ke3 {[%clk 0:00:47]} 46... Nd6 {[%clk
0:00:33]} 47. Nc3 {[%clk 0:00:46.3]} 47... Re5+ {[%clk 0:00:32.8]} 48. Kd4
{[%clk 0:00:45.8]} 48... Rh5 {[%clk 0:00:31.4]} 49. Nd5+ {[%clk 0:00:44.4]}
49... Kd8 {[%clk 0:00:27.8]} 50. Nf6 {[%clk 0:00:41.1]} 50... Rh4+ {[%clk
0:00:27.6]} 51. Kd5 {[%clk 0:00:41]} 51... Ne8 {[%clk 0:00:26.9]} 52. Ne4 {[%clk
0:00:37.3]} 52... Kc7 {[%clk 0:00:22.1]} 53. Be2 {[%clk 0:00:31.3]} 53... Rxe4
{[%clk 0:00:18.8]} 54. Kxe4 {[%clk 0:00:30.7]} 54... Kc6 {[%clk 0:00:19.7]} 55.
Kd4 {[%clk 0:00:28.8]} 55... Nd6 {[%clk 0:00:19.6]} 56. Bd1 {[%clk 0:00:27.7]}
56... b5 {[%clk 0:00:19.3]} 57. Bf3+ {[%clk 0:00:25.3]} 57... Kb6 {[%clk
0:00:19]} 58. Kd5 {[%clk 0:00:25.8]} 58... Nc4 {[%clk 0:00:18.7]} 59. Be2 {[%clk
0:00:26.2]} 59... Ne3+ {[%clk 0:00:18.8]} 60. Kd4 {[%clk 0:00:26.1]} 60... Nf5+
{[%clk 0:00:18.7]} 61. Ke5 {[%clk 0:00:25]} 61... Ne3 {[%clk 0:00:18.6]} 62. Kd4
{[%clk 0:00:25.2]} 62... Nc2+ {[%clk 0:00:18.5]} 63. Kc3 {[%clk 0:00:25.1]}
63... Ne3 {[%clk 0:00:18.6]} 64. Kd4 {[%clk 0:00:25.4]} 1/2-1/2

[Event "*** Titled Tuesday Blitz"]
[Site "Chess.com"]
[Date "2020.11.24"]
[Round "6"]
[White "shnitez"]
[Black "ftorodent"]
[Result "1-0"]
[WhiteElo "2511"]
[BlackElo "2628"]
[TimeControl "180+1"]
[EndTime "11:23:16 PST"]
[Termination "shnitez won by resignation"]

1. c4 {[%clk 0:03:00.9]} 1... f5 {[%clk 0:02:58.9]} 2. Nc3 {[%clk 0:02:58.2]}
2... Nf6 {[%clk 0:02:58.7]} 3. g3 {[%clk 0:02:56.9]} 3... g6 {[%clk 0:02:57.9]}
4. Bg2 {[%clk 0:02:57.2]} 4... Bg7 {[%clk 0:02:58.5]} 5. e3 {[%clk 0:02:54.8]}
5... O-O {[%clk 0:02:58.4]} 6. Nge2 {[%clk 0:02:54.9]} 6... e5 {[%clk
0:02:57.8]} 7. b4 {[%clk 0:02:46.7]} 7... d6 {[%clk 0:02:52.5]} 8. O-O {[%clk
0:02:44.5]} 8... Nc6 {[%clk 0:02:51.7]} 9. b5 {[%clk 0:02:43.4]} 9... Ne7 {[%clk
0:02:51]} 10. a4 {[%clk 0:02:38.8]} 10... Rb8 {[%clk 0:02:51]} 11. a5 {[%clk
0:02:34.4]} 11... Be6 {[%clk 0:02:50.7]} 12. d3 {[%clk 0:02:30.1]} 12... e4
{[%clk 0:02:44.9]} 13. Ba3 {[%clk 0:01:52.7]} 13... exd3 {[%clk 0:02:27.4]} 14.
Qxd3 {[%clk 0:01:53.6]} 14... Ng4 {[%clk 0:02:27.3]} 15. c5 {[%clk 0:01:40]}
15... Ne5 {[%clk 0:02:12.8]} 16. Qc2 {[%clk 0:01:31.3]} 16... d5 {[%clk
0:02:12.5]} 17. Rfd1 {[%clk 0:01:25.5]} 17... c6 {[%clk 0:02:12.1]} 18. Nd4
{[%clk 0:01:11.8]} 18... Bd7 {[%clk 0:02:05]} 19. a6 {[%clk 0:01:05.4]} 19...
Kh8 {[%clk 0:01:30.7]} 20. axb7 {[%clk 0:00:52.6]} 20... Rxb7 {[%clk 0:01:30.6]}
21. bxc6 {[%clk 0:00:51.2]} 21... Bxc6 {[%clk 0:01:23.5]} 22. Ne6 {[%clk
0:00:42.7]} 22... Qd7 {[%clk 0:01:13.8]} 23. Nxf8 {[%clk 0:00:42.4]} 23... Bxf8
{[%clk 0:01:13.8]} 24. Rab1 {[%clk 0:00:32.7]} 24... Bg7 {[%clk 0:01:00.8]} 25.
Rxb7 {[%clk 0:00:31.5]} 25... Qxb7 {[%clk 0:01:01]} 26. Ne2 {[%clk 0:00:29.3]}
26... Nc4 {[%clk 0:00:57.8]} 27. Bc1 {[%clk 0:00:27.9]} 27... Qb5 {[%clk
0:00:41.5]} 28. Nd4 {[%clk 0:00:27.3]} 28... Qxc5 {[%clk 0:00:41.7]} 29. Ne6
{[%clk 0:00:26.6]} 29... Qb4 {[%clk 0:00:37.3]} 30. Nxg7 {[%clk 0:00:25.8]}
30... Ba4 {[%clk 0:00:35.9]} 31. Qd3 {[%clk 0:00:13.9]} 31... Bxd1 {[%clk
0:00:35.3]} 32. Qd4 {[%clk 0:00:09.6]} 32... Nc6 {[%clk 0:00:20.9]} 33. Qxd1
{[%clk 0:00:08.4]} 33... Kxg7 {[%clk 0:00:18.9]} 34. Bxd5 {[%clk 0:00:08.8]}
34... N6e5 {[%clk 0:00:18.8]} 35. Bxc4 {[%clk 0:00:07.9]} 35... Nxc4 {[%clk
0:00:18.6]} 36. Qd4+ {[%clk 0:00:07.2]} 36... Kf7 {[%clk 0:00:17.4]} 37. Qxa7+
{[%clk 0:00:06.2]} 37... Ke6 {[%clk 0:00:16.8]} 38. Qa1 {[%clk 0:00:05.5]} 38...
Qb3 {[%clk 0:00:13]} 39. e4 {[%clk 0:00:04.4]} 39... fxe4 {[%clk 0:00:12.6]} 40.
Bg5 {[%clk 0:00:04.2]} 40... Qb2 {[%clk 0:00:11.7]} 41. Qa6+ {[%clk 0:00:03.7]}
41... Kf5 {[%clk 0:00:11.7]} 42. h4 {[%clk 0:00:03.8]} 42... Qc1+ {[%clk
0:00:09.8]} 43. Kg2 {[%clk 0:00:03.7]} 43... Qc2 {[%clk 0:00:09.7]} 44. Qb5+
{[%clk 0:00:02.8]} 44... Ke6 {[%clk 0:00:09.4]} 45. Qc6+ {[%clk 0:00:02.7]}
45... Ke5 {[%clk 0:00:08.4]} 46. Qc7+ {[%clk 0:00:02.7]} 46... Kd4 {[%clk
0:00:07.9]} 47. Qxh7 {[%clk 0:00:03.4]} 47... Qe2 {[%clk 0:00:07.1]} 48. Qxg6
{[%clk 0:00:03]} 48... Qf3+ {[%clk 0:00:07.3]} 49. Kg1 {[%clk 0:00:03.4]} 49...
Kd3 {[%clk 0:00:06.6]} 50. Qc6 {[%clk 0:00:02.6]} 50... e3 {[%clk 0:00:05.5]}
51. Qxf3 {[%clk 0:00:02.3]} 1-0

[Event "*** Titled Tuesday Blitz"]
[Site "Chess.com"]
[Date "2020.11.24"]
[Round "6"]
[White "Bathory44"]
[Black "Nuvas"]
[Result "1-0"]
[WhiteElo "2566"]
[BlackElo "2425"]
[TimeControl "180+1"]
[EndTime "11:23:17 PST"]
[Termination "Bathory44 won by resignation"]

1. e4 {[%clk 0:03:00.9]} 1... c5 {[%clk 0:03:00]} 2. c3 {[%clk 0:03:00.5]} 2...
Nf6 {[%clk 0:02:59.8]} 3. e5 {[%clk 0:03:00.8]} 3... Nd5 {[%clk 0:03:00.4]} 4.
d4 {[%clk 0:03:01.4]} 4... cxd4 {[%clk 0:03:01]} 5. Nf3 {[%clk 0:03:02]} 5... e6
{[%clk 0:02:59.9]} 6. cxd4 {[%clk 0:03:02.4]} 6... d6 {[%clk 0:03:00.1]} 7. Bc4
{[%clk 0:03:02.5]} 7... Nc6 {[%clk 0:03:00.1]} 8. O-O {[%clk 0:02:59.6]} 8...
Be7 {[%clk 0:03:00.3]} 9. exd6 {[%clk 0:02:56.6]} 9... Bxd6 {[%clk 0:02:50.6]}
10. Nc3 {[%clk 0:02:55.5]} 10... Nxc3 {[%clk 0:02:47.4]} 11. bxc3 {[%clk
0:02:55.2]} 11... O-O {[%clk 0:02:48.1]} 12. Re1 {[%clk 0:02:55.4]} 12... Qc7
{[%clk 0:02:26.7]} 13. Bd3 {[%clk 0:02:54.6]} 13... e5 {[%clk 0:02:27.1]} 14.
dxe5 {[%clk 0:02:00.6]} 14... Nxe5 {[%clk 0:02:26.6]} 15. Nxe5 {[%clk
0:01:59.7]} 15... Bxe5 {[%clk 0:02:27]} 16. Bxh7+ {[%clk 0:01:53]} 16... Kxh7
{[%clk 0:02:27]} 17. Qh5+ {[%clk 0:01:53.1]} 17... Kg8 {[%clk 0:02:27.4]} 18.
Qxe5 {[%clk 0:01:52.4]} 18... Qxe5 {[%clk 0:02:27.6]} 19. Rxe5 {[%clk
0:01:52.2]} 19... Be6 {[%clk 0:02:28]} 20. Be3 {[%clk 0:01:52.1]} 20... Rfc8
{[%clk 0:02:25]} 21. Bd4 {[%clk 0:01:51.5]} 21... Rc4 {[%clk 0:02:05.7]} 22. Rg5
{[%clk 0:01:50.6]} 22... g6 {[%clk 0:02:04.6]} 23. h4 {[%clk 0:01:50.2]} 23...
Kf8 {[%clk 0:01:54.6]} 24. h5 {[%clk 0:01:48.8]} 24... gxh5 {[%clk 0:01:54.4]}
25. Rxh5 {[%clk 0:01:48.3]} 25... Ke7 {[%clk 0:01:54.4]} 26. f3 {[%clk
0:01:48.2]} 26... Rg8 {[%clk 0:01:38.1]} 27. Kf2 {[%clk 0:01:47]} 27... b6
{[%clk 0:01:32.4]} 28. a4 {[%clk 0:01:43.9]} 28... a6 {[%clk 0:01:12]} 29. g4
{[%clk 0:01:31.8]} 29... Rb8 {[%clk 0:01:02.7]} 30. Ke3 {[%clk 0:01:14.9]} 30...
Bd7 {[%clk 0:00:58.5]} 31. a5 {[%clk 0:01:08.3]} 31... b5 {[%clk 0:00:59]} 32.
Re1 {[%clk 0:01:04.4]} 32... Be6 {[%clk 0:00:53.1]} 33. Kd3 {[%clk 0:01:02]}
33... Ra4 {[%clk 0:00:44.7]} 34. Bc5+ {[%clk 0:01:02.1]} 34... Kd7 {[%clk
0:00:44.1]} 35. Bb4 {[%clk 0:01:02.5]} 35... Kc6 {[%clk 0:00:41.2]} 36. Rc5+
{[%clk 0:01:01.8]} 36... Kb7 {[%clk 0:00:41.5]} 37. Ke4 {[%clk 0:00:45.2]} 37...
Ra2 {[%clk 0:00:36.6]} 38. Kf4 {[%clk 0:00:44.8]} 38... Rd8 {[%clk 0:00:35.7]}
39. Re3 {[%clk 0:00:44.3]} 39... Rad2 {[%clk 0:00:31.6]} 40. Kg5 {[%clk
0:00:42.9]} 40... Rg8+ {[%clk 0:00:24.3]} 41. Kf6 {[%clk 0:00:42.3]} 41... Rg6+
{[%clk 0:00:24.6]} 42. Ke5 {[%clk 0:00:38.9]} 42... Rg5+ {[%clk 0:00:23.3]} 43.
Kf4 {[%clk 0:00:38.2]} 43... Rxc5 {[%clk 0:00:22.5]} 44. Bxc5 {[%clk 0:00:38.1]}
44... Kc6 {[%clk 0:00:22.6]} 45. Bb4 {[%clk 0:00:38.3]} 45... Rd5 {[%clk
0:00:22.7]} 46. Re5 {[%clk 0:00:34.2]} 46... Rxe5 {[%clk 0:00:21.6]} 47. Kxe5
{[%clk 0:00:34.5]} 47... Bc4 {[%clk 0:00:19.5]} 48. f4 {[%clk 0:00:34.1]} 48...
Kd7 {[%clk 0:00:20]} 49. f5 {[%clk 0:00:33.2]} 49... Be2 {[%clk 0:00:17.7]} 50.
g5 {[%clk 0:00:33.3]} 50... Bd3 {[%clk 0:00:17.7]} 51. Kf6 {[%clk 0:00:33.6]}
51... Ke8 {[%clk 0:00:18.1]} 52. g6 {[%clk 0:00:33.5]} 52... fxg6 {[%clk
0:00:18.6]} 53. fxg6 {[%clk 0:00:33.9]} 53... Bc4 {[%clk 0:00:19]} 54. Ke5
{[%clk 0:00:30.6]} 54... Kd7 {[%clk 0:00:19.3]} 55. g7 {[%clk 0:00:30]} 55...
Bb3 {[%clk 0:00:18.4]} 56. Kf6 {[%clk 0:00:29.7]} 56... Bc4 {[%clk 0:00:17.6]}
57. Kg6 {[%clk 0:00:29.8]} 57... Bd3+ {[%clk 0:00:08.8]} 58. Kf7 {[%clk
0:00:29.4]} 58... Bc4+ {[%clk 0:00:09.3]} 59. Kf8 {[%clk 0:00:29.3]} 59... Kc6
{[%clk 0:00:09.5]} 60. g8=Q {[%clk 0:00:29.4]} 60... Bxg8 {[%clk 0:00:10.3]} 61.
Kxg8 {[%clk 0:00:30]} 61... Kb7 {[%clk 0:00:10.9]} 62. Kf7 {[%clk 0:00:30.2]}
62... Ka7 {[%clk 0:00:11.6]} 63. Ke6 {[%clk 0:00:30.4]} 63... Kb7 {[%clk
0:00:12.4]} 64. Kd5 {[%clk 0:00:30.6]} 64... Ka7 {[%clk 0:00:13.2]} 65. Kc6
{[%clk 0:00:30.7]} 1-0

[Event "*** Titled Tuesday Blitz"]
[Site "Chess.com"]
[Date "2020.11.24"]
[Round "6"]
[White "DenLaz"]
[Black "lefonghua"]
[Result "1-0"]
[WhiteElo "2758"]
[BlackElo "2508"]
[TimeControl "180+1"]
[EndTime "11:23:18 PST"]
[Termination "DenLaz won by resignation"]

1. d4 {[%clk 0:02:55.2]} 1... Nf6 {[%clk 0:03:00.3]} 2. Nf3 {[%clk 0:02:54.2]}
2... g6 {[%clk 0:03:00.6]} 3. g3 {[%clk 0:02:53]} 3... Bg7 {[%clk 0:03:01]} 4.
c4 {[%clk 0:02:52.9]} 4... O-O {[%clk 0:03:01.5]} 5. Bg2 {[%clk 0:02:53.1]} 5...
d6 {[%clk 0:03:02.3]} 6. Nc3 {[%clk 0:02:52]} 6... Nc6 {[%clk 0:03:02.7]} 7. O-O
{[%clk 0:02:51.5]} 7... a6 {[%clk 0:03:02.6]} 8. h3 {[%clk 0:02:49.5]} 8... Rb8
{[%clk 0:02:59.3]} 9. e4 {[%clk 0:02:41.2]} 9... b5 {[%clk 0:02:53.8]} 10. d5
{[%clk 0:02:41.2]} 10... Na5 {[%clk 0:02:51.2]} 11. cxb5 {[%clk 0:02:41.3]}
11... axb5 {[%clk 0:02:51.5]} 12. b4 {[%clk 0:02:41.3]} 12... Nc4 {[%clk
0:02:43.1]} 13. Nd4 {[%clk 0:02:39.7]} 13... Bd7 {[%clk 0:02:36.2]} 14. a4
{[%clk 0:02:39.9]} 14... bxa4 {[%clk 0:02:31.9]} 15. b5 {[%clk 0:02:40.3]} 15...
e5 {[%clk 0:02:24.1]} 16. Nc6 {[%clk 0:02:36.8]} 16... Bxc6 {[%clk 0:02:24.3]}
17. bxc6 {[%clk 0:02:31.9]} 17... a3 {[%clk 0:02:15.9]} 18. Qa4 {[%clk
0:01:53.3]} 18... Nb6 {[%clk 0:02:08.6]} 19. Qxa3 {[%clk 0:01:52.3]} 19... Ra8
{[%clk 0:02:05.9]} 20. Qb2 {[%clk 0:01:51]} 20... Rxa1 {[%clk 0:02:00.5]} 21.
Qxa1 {[%clk 0:01:51.9]} 21... Qa8 {[%clk 0:02:00.8]} 22. Bg5 {[%clk 0:01:31.9]}
22... h6 {[%clk 0:01:56.1]} 23. Bxf6 {[%clk 0:01:31.7]} 23... Bxf6 {[%clk
0:01:57]} 24. Nb5 {[%clk 0:01:31.7]} 24... Qxa1 {[%clk 0:01:50.6]} 25. Rxa1
{[%clk 0:01:30.8]} 25... Ra8 {[%clk 0:01:51]} 26. Rxa8+ {[%clk 0:01:15.1]} 26...
Nxa8 {[%clk 0:01:50.1]} 27. f4 {[%clk 0:01:14.1]} 27... Kf8 {[%clk 0:01:42.2]}
28. Kf2 {[%clk 0:01:09.9]} 28... g5 {[%clk 0:01:33.6]} 29. fxg5 {[%clk
0:01:06.7]} 29... Bxg5 {[%clk 0:01:26.5]} 30. h4 {[%clk 0:01:06.8]} 30... Bd8
{[%clk 0:01:26.2]} 31. Bf1 {[%clk 0:00:58.4]} 31... Nb6 {[%clk 0:01:24.3]} 32.
Nc3 {[%clk 0:00:58.4]} 32... Kg7 {[%clk 0:01:15.7]} 33. Kf3 {[%clk 0:00:58.2]}
33... Kg6 {[%clk 0:01:14.3]} 34. Kg4 {[%clk 0:00:56.6]} 34... h5+ {[%clk
0:01:11.9]} 35. Kf3 {[%clk 0:00:56.5]} 35... Kh6 {[%clk 0:01:05.3]} 36. Ke3
{[%clk 0:00:54.2]} 36... Kg6 {[%clk 0:01:03.1]} 37. Be2 {[%clk 0:00:54.5]} 37...
Kh6 {[%clk 0:01:02.1]} 38. Kd3 {[%clk 0:00:53.6]} 38... Kg6 {[%clk 0:00:59.9]}
39. Kc2 {[%clk 0:00:51.4]} 39... Nc8 {[%clk 0:00:55.1]} 40. Bd3 {[%clk
0:00:31.3]} 40... Ne7 {[%clk 0:00:42.3]} 41. Kb3 {[%clk 0:00:31.4]} 41... Ng8
{[%clk 0:00:38]} 42. Kc4 {[%clk 0:00:30.1]} 42... Nh6 {[%clk 0:00:21.5]} 43. Kb5
{[%clk 0:00:29.7]} 43... Ng4 {[%clk 0:00:16.3]} 44. Nd1 {[%clk 0:00:26.6]} 44...
Kf6 {[%clk 0:00:13.5]} 45. Ka6 {[%clk 0:00:26]} 45... Ke7 {[%clk 0:00:13.4]} 46.
Be2 {[%clk 0:00:25.7]} 46... Nf6 {[%clk 0:00:13]} 47. Bf3 {[%clk 0:00:26]} 47...
Ke8 {[%clk 0:00:12.8]} 48. Kb7 {[%clk 0:00:25.3]} 48... Ke7 {[%clk 0:00:12.6]}
49. Ne3 {[%clk 0:00:25]} 49... Ke8 {[%clk 0:00:13]} 50. Nf5 {[%clk 0:00:24.3]}
50... Ng8 {[%clk 0:00:12.4]} 51. Bxh5 {[%clk 0:00:23.8]} 51... Nf6 {[%clk
0:00:12.3]} 52. Bf3 {[%clk 0:00:24]} 52... Ng8 {[%clk 0:00:12.4]} 53. h5 {[%clk
0:00:24.3]} 53... Nf6 {[%clk 0:00:12.9]} 54. h6 {[%clk 0:00:24.1]} 54... Nh7
{[%clk 0:00:13.5]} 55. Kc8 {[%clk 0:00:17.4]} 55... Ng5 {[%clk 0:00:12.3]} 56.
Ng7+ {[%clk 0:00:13.9]} 56... Ke7 {[%clk 0:00:11.7]} 57. Bg4 {[%clk 0:00:14.5]}
57... Nh7 {[%clk 0:00:10]} 58. Bf5 {[%clk 0:00:14.8]} 58... Ng5 {[%clk
0:00:08.7]} 59. h7 {[%clk 0:00:15.4]} 59... Nxh7 {[%clk 0:00:09.1]} 60. Bxh7
{[%clk 0:00:16.3]} 1-0

[Event "*** Titled Tuesday Blitz"]
[Site "Chess.com"]
[Date "2020.11.24"]
[Round "6"]
[White "Squirlolz"]
[Black "Zarikovs1999"]
[Result "1-0"]
[WhiteElo "2559"]
[BlackElo "2387"]
[TimeControl "180+1"]
[EndTime "11:23:18 PST"]
[Termination "Squirlolz won by resignation"]

1. e4 {[%clk 0:03:00.9]} 1... c5 {[%clk 0:02:57]} 2. Na3 {[%clk 0:03:00.9]} 2...
g6 {[%clk 0:02:53.2]} 3. c3 {[%clk 0:02:56.7]} 3... Bg7 {[%clk 0:02:51.3]} 4.
Nc2 {[%clk 0:02:56.8]} 4... Nf6 {[%clk 0:02:46.7]} 5. d3 {[%clk 0:02:56.9]} 5...
Nc6 {[%clk 0:02:46]} 6. f4 {[%clk 0:02:57.2]} 6... d6 {[%clk 0:02:41.5]} 7. Nf3
{[%clk 0:02:57.3]} 7... O-O {[%clk 0:02:40.8]} 8. Be2 {[%clk 0:02:57.7]} 8... e5
{[%clk 0:02:37.5]} 9. O-O {[%clk 0:02:57.7]} 9... exf4 {[%clk 0:02:37.6]} 10.
Bxf4 {[%clk 0:02:57.2]} 10... Qb6 {[%clk 0:02:19.7]} 11. Qd2 {[%clk 0:02:54]}
11... Nh5 {[%clk 0:02:01.8]} 12. Be3 {[%clk 0:02:34]} 12... Qxb2 {[%clk
0:02:00.2]} 13. d4 {[%clk 0:02:33.5]} 13... cxd4 {[%clk 0:01:58.3]} 14. cxd4
{[%clk 0:02:22.1]} 14... Nb4 {[%clk 0:01:53.4]} 15. Nxb4 {[%clk 0:02:16.9]}
15... Qa3 {[%clk 0:01:44.6]} 16. Nd5 {[%clk 0:02:11.9]} 16... Bd7 {[%clk
0:01:31.6]} 17. Rab1 {[%clk 0:02:09.8]} 17... Bc6 {[%clk 0:01:30.8]} 18. Ne7+
{[%clk 0:02:08.8]} 18... Kh8 {[%clk 0:01:30.6]} 19. Nxc6 {[%clk 0:02:08.7]}
19... bxc6 {[%clk 0:01:31.5]} 20. Rb3 {[%clk 0:02:01.4]} 20... Qa4 {[%clk
0:01:31.3]} 21. Rc1 {[%clk 0:01:40.6]} 21... Rae8 {[%clk 0:01:27]} 22. Bd3
{[%clk 0:01:30.8]} 22... f5 {[%clk 0:01:13.7]} 23. exf5 {[%clk 0:01:22.6]} 23...
gxf5 {[%clk 0:01:13.4]} 24. Rc4 {[%clk 0:01:19.5]} 24... Qa6 {[%clk 0:01:11.7]}
25. Bh6 {[%clk 0:01:19.5]} 25... Qc8 {[%clk 0:01:03.2]} 26. Bxg7+ {[%clk
0:01:17.2]} 26... Nxg7 {[%clk 0:01:03]} 27. d5 {[%clk 0:01:10.7]} 27... c5
{[%clk 0:01:02.2]} 28. Qh6 {[%clk 0:01:09.9]} 28... Re7 {[%clk 0:00:22.7]} 29.
Rh4 {[%clk 0:01:01.7]} 29... Ne8 {[%clk 0:00:16.3]} 30. Ng5 {[%clk 0:00:51.5]}
30... Nf6 {[%clk 0:00:11.9]} 31. Ne6 {[%clk 0:00:47.9]} 31... Rff7 {[%clk
0:00:09.5]} 32. Bxf5 {[%clk 0:00:46.4]} 32... Nxd5 {[%clk 0:00:05.7]} 33. Rf3
{[%clk 0:00:14.5]} 33... Rf6 {[%clk 0:00:05]} 34. Qd2 {[%clk 0:00:12.1]} 34...
Rfxe6 {[%clk 0:00:04]} 35. Qxd5 {[%clk 0:00:06.3]} 35... Re1+ {[%clk 0:00:03.6]}
36. Rf1 {[%clk 0:00:06.4]} 36... Rxf1+ {[%clk 0:00:03.4]} 37. Kxf1 {[%clk
0:00:07.3]} 37... Qf8 {[%clk 0:00:03.3]} 38. Rf4 {[%clk 0:00:05.8]} 38... Rf7
{[%clk 0:00:03.2]} 39. g4 {[%clk 0:00:05.9]} 39... Kg7 {[%clk 0:00:03.1]} 40.
Rf3 {[%clk 0:00:06.4]} 40... Rf6 {[%clk 0:00:03.5]} 41. Be4 {[%clk 0:00:05.9]}
41... Rxf3+ {[%clk 0:00:03.3]} 42. Bxf3 {[%clk 0:00:06.8]} 42... Qf6 {[%clk
0:00:03.7]} 43. Kg2 {[%clk 0:00:04.9]} 43... Qb2+ {[%clk 0:00:03.4]} 44. Kg3
{[%clk 0:00:04.8]} 44... Qf6 {[%clk 0:00:04.3]} 45. h4 {[%clk 0:00:04.6]} 45...
Kf8 {[%clk 0:00:03.6]} 46. g5 {[%clk 0:00:04.8]} 46... Qe7 {[%clk 0:00:04.2]}
47. Be4 {[%clk 0:00:04]} 47... Ke8 {[%clk 0:00:02.5]} 48. Qf5 {[%clk 0:00:04.9]}
48... Kd8 {[%clk 0:00:02.4]} 49. Kg4 {[%clk 0:00:05.8]} 49... Kc7 {[%clk
0:00:02.8]} 50. Qxh7 {[%clk 0:00:06.2]} 50... Kd7 {[%clk 0:00:02.4]} 51. Qxe7+
{[%clk 0:00:06.3]} 51... Kxe7 {[%clk 0:00:03.3]} 52. h5 {[%clk 0:00:07.2]} 52...
d5 {[%clk 0:00:04.2]} 53. Bxd5 {[%clk 0:00:07.5]} 53... c4 {[%clk 0:00:03.7]}
54. Bxc4 {[%clk 0:00:08]} 1-0